fUSD/lending_fUSD_20251030
["ID","MTS","AMOUNT","RATE_DAILY","PERIOD"]
[392694227,1761826241176,-332.57952245,0.00014999,2]
[392694228,1761826241187,-213319.80635417,0.00014999,2]
[392694229,1761826241196,-1057.7028,0.00014999,2]
[392694230,1761826241206,-666.0,0.00014999,2]
[392694231,1761826241216,-1336.0,0.00015,2]
[392694232,1761826241225,-77623.23631039,0.00015,2]
[392694233,1761826241234,-25236.87852053,0.00015,2]
[392694234,1761826241246,-79770.35058127,0.00015,2]
[392694235,1761826241256,-663.31904,0.00015,2]
[392694236,1761826241265,-1799718.69872126,0.00015,2]
[392694237,1761826241280,-10973.00000001,0.00015,2]
[392694250,1761826243404,-262.997,0.00015,2]
[392694252,1761826246380,-101547.59520345,0.00015,2]
[392694253,1761826246544,-7779.54435166,0.00015,2]
[392694304,1761826259829,-450399.88826792,0.00015,2]
[392694305,1761826259841,-6581.4,0.00015,2]
[392694306,1761826260205,150.0,0.00013938,2]
[392694307,1761826357597,6075.61,0.00013938,2]
[392694308,1761827056777,1000.0,0.00031507,120]
[392694363,1761827317961,174.8,7.025e-05,2]
[392694364,1761827318019,174.8,9.367e-05,2]
[392694365,1761827318167,174.8,0.00011708,2]
[392694366,1761827318391,174.8,0.0001405,2]
[392694372,1761827355379,200.0,0.0001405,2]
[392694373,1761827362769,1000.0,0.00014048,2]
[392694388,1761827431539,-250.0,0.00014104,2]
[392694389,1761827431549,-250.0,0.00014118,2]
[392694390,1761827431559,-176.19,0.00014132,2]
[392694391,1761827431568,-81.67417126,0.000148,2]
[392694392,1761827431581,-4918.91546115,0.000148,2]
[392694393,1761827431590,-369.2727157,0.000149,2]
[392694394,1761827431599,-300.0,0.00014973,2]
[392694395,1761827431609,-1200.0,0.00014973,2]
[392694396,1761827431618,-300.0,0.00014973,2]
[392694397,1761827431627,-150.0,0.00014973,2]
[392694398,1761827431637,-500.0,0.00014974,2]
[392694399,1761827431647,-500.0,0.00014974,2]
[392694400,1761827431656,-500.0,0.00014974,2]
[392694401,1761827431665,-500.0,0.00014974,2]
[392694402,1761827431675,-500.0,0.00014974,2]
[392694403,1761827431684,-500.0,0.00014974,2]
[392694404,1761827431693,-500.0,0.00014974,2]
[392694405,1761827431702,-220.3437078,0.00014974,2]
[392694406,1761827431713,-279.6562922,0.00014974,2]
[392694407,1761827431723,-500.0,0.00014974,2]
[392694408,1761827431735,-500.0,0.00014974,2]
[392694409,1761827431744,-500.0,0.00014974,2]
[392694410,1761827431753,-150.8437078,0.00014974,2]
[392694411,1761827431769,-349.1562922,0.00014974,2]
[392694412,1761827431785,-500.0,0.00014974,2]
[392694413,1761827431795,-446.15822988,0.00014974,2]
[392694414,1761827431806,-53.84177012,0.00014974,2]
[392694415,1761827431815,-334.97738226,0.00014974,2]
[392694416,1761827431826,-165.02261774,0.00014974,2]
[392694417,1761827431836,-500.0,0.00014974,2]
[392694418,1761827431847,-351.81699216,0.00014974,2]
[392694419,1761827431859,-148.18300784,0.00014974,2]
[392694420,1761827431870,-500.0,0.00014974,2]
[392694421,1761827431880,-500.0,0.00014974,2]
[392694422,1761827431889,-500.0,0.00014974,2]
[392694423,1761827431900,-500.0,0.00014974,2]
[392694424,1761827431909,-500.0,0.00014974,2]
[392694425,1761827431919,-500.0,0.00014974,2]
[392694426,1761827431929,-500.0,0.00014974,2]
[392694427,1761827431939,-500.0,0.00014974,2]
[392694428,1761827431948,-500.0,0.00014974,2]
[392694429,1761827431958,-500.0,0.00014974,2]
[392694430,1761827431967,-500.0,0.00014974,2]
[392694431,1761827431977,-500.0,0.00014974,2]
[392694432,1761827431988,-205.93441611,0.00014974,2]
[392694433,1761827431999,-294.06558389,0.00014974,2]
[392694434,1761827432009,-500.0,0.00014974,2]
[392694435,1761827432018,-5.93441611,0.00014974,2]
[392694436,1761827432041,-567.94334588,0.00014974,2]
[392694437,1761827432056,-750.43,0.00014975,2]
[392694438,1761827432065,-1601.515,0.00014976,2]
[392694439,1761827432075,-1319.812,0.00014976,2]
[392694440,1761827432085,-821.0,0.00014976,2]
[392694441,1761827432095,-397.25215412,0.00014976,2]
[392694615,1761827437448,-877.69784588,0.00014976,2]
[392694617,1761827437458,-3493.0,0.00014976,2]
[392694619,1761827437468,-573.0,0.00014976,2]
[392694621,1761827437477,-608.81916595,0.00014976,2]
[392694627,1761827437658,-211.18083405,0.00014976,2]
[392694628,1761827437668,-187.09500151,0.00014979,2]
[392694629,1761827437677,-26976.72416444,0.0001498,2]
[392694630,1761827437696,-54393.1894619,0.0001498,2]
[392694631,1761827437707,-18742.59423117,0.0001498,2]
[392694632,1761827437719,-9294.77304079,0.0001498,2]
[392694633,1761827437731,-8018.1475198,0.0001498,2]
[392694635,1761827437743,-2662.33209386,0.0001498,2]
[392694645,1761827439545,-663.655,0.00014976,2]
[392694646,1761827439556,-6872.0387268,0.0001498,2]
[392694647,1761827439595,-1223.54078483,0.0001498,2]
[392694648,1761827439764,-15499.99999998,0.0001498,2]
[392694649,1761827439775,-689684.13411978,0.0001498,2]
[392694650,1761827439785,-507.74347007,0.00014985,2]
[392694651,1761827439794,-687.362,0.00014991,2]
[392694652,1761827439803,-151.0,0.00014991,2]
[392694653,1761827439812,-151.0,0.00014991,2]
[392694654,1761827439821,-151.0,0.00014991,2]
[392694655,1761827439830,-151.0,0.00014991,2]
[392694656,1761827439840,-151.0,0.00014991,2]
[392694657,1761827439849,-151.0,0.00014991,2]
[392694658,1761827439858,-151.0,0.00014991,2]
[392694659,1761827439867,-151.0,0.00014991,2]
[392694660,1761827439877,-515.33176881,0.00014991,2]
[392694661,1761827439885,-151.0,0.00014991,2]
[392694662,1761827439895,-151.0,0.00014991,2]
[392694663,1761827439904,-151.0,0.00014991,2]
[392694664,1761827439913,-151.0,0.00014991,2]
[392694665,1761827439923,-151.0,0.00014991,2]
[392694666,1761827439932,-151.0,0.00014991,2]
[392694667,1761827439941,-151.0,0.00014991,2]
[392694668,1761827439950,-151.0,0.00014991,2]
[392694669,1761827439959,-151.0,0.00014991,2]
[392694670,1761827439968,-151.0,0.00014991,2]
[392694671,1761827439977,-151.0,0.00014991,2]
[392694672,1761827439989,-151.0,0.00014991,2]
[392694673,1761827439999,-553.64373807,0.00014991,2]
[392694674,1761827440009,-150.0,0.00014991,2]
[392694675,1761827440018,-500.0,0.00014991,2]
[392694676,1761827440027,-500.0,0.00014991,2]
[392694677,1761827440036,-150.0,0.00014991,2]
[392694678,1761827440049,-445.0,0.00014991,2]
[392694679,1761827440059,-150.0,0.00014991,2]
[392694680,1761827440068,-255.49518054,0.00014991,2]
[392694681,1761827440077,-500.0,0.00014991,2]
[392694682,1761827440087,-500.0,0.00014991,2]
[392694683,1761827440098,-150.0,0.00014997,2]
[392694684,1761827440107,-150.0,0.00014997,2]
[392694685,1761827440117,-150.0,0.00014997,2]
[392694686,1761827440128,-150.0,0.00014997,2]
[392694687,1761827440140,-150.0,0.00014997,2]
[392694688,1761827440149,-300.0,0.00014997,2]
[392694689,1761827440158,-150.0,0.00014998,2]
[392694690,1761827440168,-150.0,0.00014998,2]
[392694691,1761827440178,-150.0,0.00014998,2]
[392694692,1761827440187,-150.0,0.00014998,2]
[392694694,1761827440196,-212.93440763,0.00014998,2]
[392694695,1761827440205,-666.0,0.00014999,2]
[392694696,1761827440214,-2329.0,0.00015,2]
[392694697,1761827440223,-1283095.54128855,0.00015,2]
[392694698,1761827440261,-95.06579999,0.00015,2]
[392694699,1761827440271,-11430.0,0.00015,2]
[392694700,1761827440283,-1534.78885565,0.00015,2]
[392694701,1761827440298,-500.0,0.00015,2]
[392694702,1761827440308,-649.49634291,0.00015,2]
[392694703,1761827440319,-547.5,0.00015,2]
[392694733,1761827442563,-10911.0,0.00015,2]
[392694734,1761827442574,-251.262,0.00015,2]
[392694740,1761827442675,-1859427.05529751,0.00015,2]
[392694748,1761827442733,-2941.90170423,0.00015,2]
[392694760,1761827442848,-219000.0,0.00015,2]
[392694800,1761827445591,-2186.0,0.00014976,2]
[392694801,1761827445603,-482.1449675,0.00014976,2]
[392694802,1761827445614,-316.27499972,0.00014976,2]
[392694858,1761827744316,500.0,0.00014082,2]
[392694859,1761827745780,1200.0,0.00013808,2]
[392694860,1761827748861,2700.0,0.00013808,2]
[392694879,1761828186556,6353.83,0.00014066,2]
[392694914,1761828244624,500.0,0.00031506,120]
[392694916,1761828250643,500.0,0.00031506,120]
[392694917,1761828256849,500.0,0.00031506,120]
[392694918,1761828262330,500.0,0.00031506,120]
[392694929,1761828278613,499.999,0.00031506,120]
[392694930,1761828282116,201.05,0.0003,120]
[392695003,1761828631775,-183.19,0.00014128,2]
[392695004,1761828631786,-195.0,0.00014215,2]
[392695005,1761828631795,-250.0,0.00014303,2]
[392695006,1761828631805,-195.0,0.00014612,2]
[392695007,1761828631815,-192.14,0.00014829,2]
[392695008,1761828631824,-895.17,0.00014899,2]
[392695009,1761828631947,-304.83,0.00014899,2]
[392695010,1761828631958,-1123.813367,0.000149,2]
[392695011,1761828631967,-1123.81336699,0.000149,2]
[392695012,1761828631977,-414.96519535,0.000149,2]
[392695013,1761828631987,-300.0,0.00014968,2]
[392695014,1761828631997,-500.0,0.0001497,2]
[392695015,1761828632006,-1000.0,0.0001497,2]
[392695016,1761828632016,-1000.0,0.0001497,2]
[392695017,1761828632025,-555.92906498,0.0001497,2]
[392695018,1761828632035,-102586.64900571,0.00014975,2]
[392695019,1761828632087,-501.82068701,0.00014975,2]
[392695020,1761828632102,-25726.69250353,0.00014975,2]
[392695021,1761828632113,-40616.40972355,0.00014975,2]
[392695023,1761828632124,-317473.86613022,0.00014975,2]
[392695025,1761828632133,-150.0,0.00014977,2]
[392695027,1761828632143,-573.0,0.00014978,2]
[392695029,1761828632152,-3419.0,0.00014978,2]
[392695031,1761828632162,-820.0,0.00014978,2]
[392695033,1761828632177,-661.675,0.00014978,2]
[392695036,1761828632187,-1314.0,0.00014978,2]
[392695038,1761828632196,-1594.0,0.00014978,2]
[392695039,1761828632205,-1271.0,0.00014978,2]
[392695042,1761828632216,-819.0,0.00014978,2]
[392695043,1761828632226,-298.398,0.00014978,2]
[392695045,1761828632235,-1976.585,0.00014978,2]
[392695047,1761828632245,-507.74347007,0.00014985,2]
[392695050,1761828632255,-656.62,0.00014991,2]
[392695051,1761828632265,-515.33176881,0.00014991,2]
[392695053,1761828632275,-500.0,0.00014991,2]
[392695055,1761828632284,-500.0,0.00014991,2]
[392695058,1761828632295,-500.0,0.00014991,2]
[392695059,1761828632305,-337.22623762,0.00014991,2]
[392695062,1761828632315,-151.0,0.00014991,2]
[392695063,1761828632324,-151.0,0.00014991,2]
[392695066,1761828632335,-151.0,0.00014991,2]
[392695068,1761828632344,-151.0,0.00014991,2]
[392695069,1761828632354,-151.0,0.00014991,2]
[392695072,1761828632364,-151.0,0.00014991,2]
[392695074,1761828632373,-151.0,0.00014991,2]
[392695075,1761828632383,-151.0,0.00014991,2]
[392695076,1761828632392,-151.0,0.00014991,2]
[392695077,1761828632406,-207.83839544,0.00014991,2]
[392695078,1761828632415,-151.0,0.00014991,2]
[392695079,1761828632429,-151.0,0.00014991,2]
[392695080,1761828632440,-151.0,0.00014991,2]
[392695081,1761828632449,-151.0,0.00014991,2]
[392695082,1761828632459,-151.0,0.00014991,2]
[392695083,1761828632468,-151.0,0.00014991,2]
[392695084,1761828632479,-151.0,0.00014991,2]
[392695085,1761828632488,-151.0,0.00014991,2]
[392695086,1761828632498,-151.0,0.00014991,2]
[392695087,1761828632508,-151.0,0.00014991,2]
[392695089,1761828632518,-151.0,0.00014991,2]
[392695091,1761828632527,-553.64373807,0.00014991,2]
[392695092,1761828632537,-500.0,0.00014991,2]
[392695093,1761828632547,-617.64328901,0.00014991,2]
[392695094,1761828632557,-150.0,0.00014991,2]
[392695095,1761828632566,-500.0,0.00014991,2]
[392695096,1761828632575,-500.0,0.00014991,2]
[392695097,1761828632584,-150.0,0.00014991,2]
[392695098,1761828632594,-445.0,0.00014991,2]
[392695099,1761828632604,-150.0,0.00014991,2]
[392695100,1761828632615,-255.49518054,0.00014991,2]
[392695101,1761828632628,-500.0,0.00014991,2]
[392695102,1761828632639,-500.0,0.00014991,2]
[392695103,1761828632649,-200.0,0.00014998,2]
[392695104,1761828632659,-175.62026478,0.00014999,2]
[392695105,1761828632671,-154.57561456,0.00014999,2]
[392695106,1761828632680,-666.0,0.00014999,2]
[392695107,1761828632689,-2733.0,0.00015,2]
[392695108,1761828632699,-2306.84855682,0.00015,2]
[392695109,1761828632711,-1254.41808677,0.00015,2]
[392695110,1761828632887,-271.54991355,0.00015,2]
[392695111,1761828632898,-3554.20493207,0.00015,2]
[392695112,1761828632910,-3266.4,0.00015,2]
[392695123,1761828637728,-500.0,0.0001499,2]
[392695124,1761828637738,-500.0,0.0001499,2]
[392695125,1761828637747,-448.92974975,0.0001499,2]
[392695126,1761828637757,-4719.76775181,0.00015,2]
[392695127,1761828637837,-1250.51407599,0.00015,2]
[392695128,1761828637849,-1031217.41337103,0.00015,2]
[392695129,1761828637858,-1240660.45881169,0.00015,2]
[392695130,1761828637868,-817421.51545042,0.00015,2]
[392695131,1761828637877,-2027.6262559,0.00015,2]
[392695132,1761828637886,-7893.39635318,0.00015,2]
[392695133,1761828637896,-409042.07851848,0.00015,2]
[392695134,1761828637905,-402821.64681679,0.00015,2]
[392695135,1761828637914,-150.0,0.00015,2]
[392695136,1761828637924,-596.63174061,0.00015,2]
[392695137,1761828637933,-150.0,0.00015,2]
[392695138,1761828637943,-593.57895976,0.00015,2]
[392695139,1761828637952,-92224.46288763,0.00015,2]
[392695141,1761828637962,-895410.16426881,0.00015,2]
[392695143,1761828637972,-708376.18335574,0.00015,2]
[392695145,1761828637981,-744.45,0.00015,2]
[392695147,1761828637990,-643089.02692213,0.00015,2]
[392695149,1761828638000,-107031.39501578,0.00015,2]
[392695151,1761828638012,-1340.34500307,0.00015,2]
[392695153,1761828638024,-6909.64508952,0.00015,2]
[392695154,1761828638036,-2637.33028662,0.00015,2]
[392695155,1761828638052,-3862.0,0.00015,2]
[392695218,1761828639735,-259.19698346,0.00014978,2]
[392695220,1761828639848,-308.89387096,0.00014978,2]
[392695221,1761828639861,-658.52359338,0.00014978,2]
[392695227,1761828639960,-2262.4905522,0.00014978,2]
[392695228,1761828639969,-26187.53375354,0.00015,2]
[392695229,1761828639979,-1267938.02754793,0.00015,2]
[392695230,1761828640307,-493.16999998,0.00015,2]
[392695231,1761828640318,-3457.3015607,0.00015,2]
[392695241,1761828642936,-257.75720001,0.0001499,2]
[392695273,1761828645862,-242.24279999,0.0001499,2]
[392695275,1761828645872,-216.31381934,0.0001499,2]
[392695277,1761828645882,-167.730886,0.00015,2]
[392695281,1761828646026,-275.05253444,0.00015,2]
[392695282,1761828646038,-1162.44959401,0.00015,2]
[392695330,1761828733831,665.83,0.00013699,2]
[392695331,1761828955792,16455.2225987,0.0001429,7]
[392695332,1761828955816,1316.16859228,0.0001429,7]
[392695333,1761828986629,-168.0,0.00014487,2]
[392695334,1761828986660,-168.0,0.00014493,2]
[392695335,1761828986688,-150.0,0.00014657,2]
[392695336,1761828986714,-216.9840126,0.00014777,2]
[392695337,1761828986755,-686.9679,0.0001485,2]
[392695338,1761828986787,-168.0,0.00014918,2]
[392695339,1761828986819,-168.0,0.00014969,2]
[392695340,1761828986847,-500.0,0.0001497,2]
[392695341,1761828986875,-1000.0,0.0001497,2]
[392695342,1761828986901,-494.729,0.00014978,2]
[392695343,1761828986930,-1200.0,0.00014989,2]
[392695344,1761828986958,-300.0,0.00014989,2]
[392695345,1761828986986,-1200.0,0.0001499,2]
[392695346,1761828987013,-150.0,0.0001499,2]
[392695347,1761828987039,-300.0,0.0001499,2]
[392695348,1761828987066,-151.0,0.00014991,2]
[392695349,1761828987093,-151.0,0.00014991,2]
[392695350,1761828987120,-151.0,0.00014991,2]
[392695351,1761828987153,-151.0,0.00014991,2]
[392695352,1761828987182,-151.0,0.00014991,2]
[392695353,1761828987211,-151.0,0.00014991,2]
[392695354,1761828987240,-151.0,0.00014991,2]
[392695355,1761828987270,-151.0,0.00014991,2]
[392695356,1761828987299,-151.0,0.00014991,2]
[392695357,1761828987328,-151.0,0.00014991,2]
[392695358,1761828987360,-151.0,0.00014991,2]
[392695359,1761828987389,-151.0,0.00014991,2]
[392695360,1761828987421,-151.0,0.00014991,2]
[392695361,1761828987449,-151.0,0.00014991,2]
[392695362,1761828987477,-151.0,0.00014991,2]
[392695363,1761828987507,-151.0,0.00014991,2]
[392695364,1761828987535,-151.0,0.00014991,2]
[392695365,1761828987563,-151.0,0.00014991,2]
[392695366,1761828987598,-151.0,0.00014991,2]
[392695367,1761828987626,-151.0,0.00014991,2]
[392695368,1761828987654,-553.64373807,0.00014991,2]
[392695369,1761828987680,-766.06,0.00014991,2]
[392695370,1761828987707,-766.458,0.00014999,2]
[392695371,1761828987739,-500.0,0.00014999,2]
[392695372,1761828987766,-495.51437203,0.00014999,2]
[392695373,1761828987792,-192.80836535,0.00014999,2]
[392695374,1761828987823,-500.0,0.00014999,2]
[392695375,1761828987854,-500.0,0.00014999,2]
[392695376,1761828987885,-500.0,0.00014999,2]
[392695377,1761828987915,-500.0,0.00014999,2]
[392695378,1761828988503,-500.0,0.00014999,2]
[392695379,1761828988581,-500.0,0.00014999,2]
[392695380,1761828988607,-500.0,0.00014999,2]
[392695381,1761828988633,-500.0,0.00014999,2]
[392695382,1761828988658,-500.0,0.00014999,2]
[392695383,1761828988682,-500.0,0.00014999,2]
[392695384,1761828988708,-346.7797648,0.00014999,2]
[392695385,1761828988734,-500.0,0.00014999,2]
[392695386,1761828988760,-500.0,0.00014999,2]
[392695387,1761828988786,-500.0,0.00014999,2]
[392695388,1761828988811,-500.0,0.00014999,2]
[392695389,1761828988837,-500.0,0.00014999,2]
[392695390,1761828988863,-500.0,0.00014999,2]
[392695391,1761828988888,-500.0,0.00014999,2]
[392695392,1761828988914,-500.0,0.00014999,2]
[392695393,1761828988941,-500.0,0.00014999,2]
[392695394,1761828988966,-500.0,0.00014999,2]
[392695395,1761828988990,-600.0,0.00014999,2]
[392695396,1761828989015,-500.0,0.00014999,2]
[392695397,1761828989036,-155104.05484715,0.00015,2]
[392695398,1761828991748,-100000.0,0.00015,2]
[392695399,1761828992124,-100000.0,0.00015,2]
[392695400,1761828992442,-100000.0,0.00015,2]
[392695401,1761828993028,-100000.0,0.00015,2]
[392695402,1761828997633,-100000.0,0.00015,2]
[392695403,1761829336556,1464.34386853,0.000155,3]
[392695404,1761829351410,159.59555,0.00031506,120]
[392695405,1761829512661,150.0,0.00013488,2]
[392695406,1761829514027,150.0,0.00013488,2]
[392695407,1761829519506,249.72,0.000161,120]
[392695426,1761829711029,224.75,0.00016,120]
[392695430,1761829831926,-150.0,0.00014718,2]
[392695431,1761829831936,-572.47325,0.0001485,2]
[392695432,1761829831945,-402.3318022,0.000149,2]
[392695433,1761829831955,-178.0,0.00014977,2]
[392695434,1761829831965,-457.922,0.00014978,2]
[392695435,1761829831976,-573.0,0.00014978,2]
[392695436,1761829831985,-607.0,0.00014978,2]
[392695437,1761829831995,-150.0,0.00014986,2]
[392695438,1761829832004,-1200.0,0.00014989,2]
[392695439,1761829832014,-300.0,0.0001499,2]
[392695440,1761829832023,-300.0,0.0001499,2]
[392695441,1761829832032,-553.64373807,0.00014991,2]
[392695442,1761829832042,-151.0,0.00014991,2]
[392695443,1761829832051,-151.0,0.00014991,2]
[392695444,1761829832061,-151.0,0.00014991,2]
[392695445,1761829832070,-151.0,0.00014991,2]
[392695446,1761829832080,-151.0,0.00014991,2]
[392695447,1761829832089,-151.0,0.00014991,2]
[392695448,1761829832099,-151.0,0.00014991,2]
[392695449,1761829832108,-151.0,0.00014991,2]
[392695450,1761829832118,-195.09991751,0.00014991,2]
[392695451,1761829832128,-150.0,0.00014998,2]
[392695452,1761829832138,-500.0,0.00014999,2]
[392695453,1761829832148,-500.0,0.00014999,2]
[392695454,1761829832157,-500.0,0.00014999,2]
[392695455,1761829832166,-500.0,0.00014999,2]
[392695456,1761829832176,-182.41058577,0.00014999,2]
[392695457,1761829832186,-500.0,0.00014999,2]
[392695458,1761829832196,-461.49235841,0.00014999,2]
[392695486,1761829832492,-500.0,0.00014999,2]
[392695488,1761829832503,-500.0,0.00014999,2]
[392695490,1761829832513,-500.0,0.00014999,2]
[392695492,1761829832522,-500.0,0.00014999,2]
[392695494,1761829832530,-500.0,0.00014999,2]
[392695496,1761829832539,-500.0,0.00014999,2]
[392695498,1761829832548,-500.0,0.00014999,2]
[392695500,1761829832558,-500.0,0.00014999,2]
[392695502,1761829832567,-154.48390391,0.00014999,2]
[392695504,1761829832576,-463.04339014,0.00014999,2]
[392695506,1761829832585,-638.39,0.00014999,2]
[392695508,1761829832594,-500.0,0.00014999,2]
[392695510,1761829832603,-500.0,0.00014999,2]
[392695512,1761829832612,-500.0,0.00014999,2]
[392695514,1761829832622,-500.0,0.00014999,2]
[392695515,1761829832631,-500.0,0.00014999,2]
[392695516,1761829832640,-500.0,0.00014999,2]
[392695517,1761829832650,-500.0,0.00014999,2]
[392695518,1761829832663,-147.28163878,0.00014999,2]
[392695519,1761829832691,-352.71836122,0.00014999,2]
[392695520,1761829832708,-91.16163858,0.00014999,2]
[392695522,1761829833319,-0.03989956,0.00014999,2]
[392695523,1761829833330,-408.79846186,0.00014999,2]
[392695524,1761829833339,-500.0,0.00014999,2]
[392695525,1761829833348,-204.48381361,0.00014999,2]
[392695526,1761829833358,-1683.52252461,0.00015,2]
[392695527,1761829833370,-1447.47747539,0.00015,2]
[392695528,1761829833379,-382463.46287181,0.00015,2]
[392695529,1761829833390,-31698.59969703,0.00015,2]
[392695530,1761829833401,-20802.60080269,0.00015,2]
[392695531,1761829833411,-1568.65684584,0.00015,2]
[392695532,1761829833427,-673.38616737,0.00015,2]
[392695533,1761829833437,-3861.51514014,0.00015,2]
[392695534,1761829833448,-1204.27485986,0.00015,2]
[392695535,1761829833475,-2432.95220253,0.00015,2]
[392695536,1761829833486,-3877.24755,0.00015,2]
[392695555,1761829837954,-752240.92943205,0.00015,2]
[392695557,1761829837965,-1919604.94563638,0.00015,2]
[392695558,1761829837975,-250477.95133927,0.00015,2]
[392695559,1761829837984,-259599.29949923,0.00015,2]
[392695560,1761829837993,-150.0,0.00015,2]
[392695561,1761829838003,-1427.27023856,0.00015,2]
[392695562,1761829838012,-150.0,0.00015,2]
[392695563,1761829838021,-5026.44422001,0.00015,2]
[392695564,1761829838030,-150.0,0.00015,2]
[392695565,1761829838040,-632.67403499,0.00015,2]
[392695566,1761829838050,-10245.60006886,0.00015,2]
[392695567,1761829838059,-1810495.01001933,0.00015,2]
[392695568,1761829838069,-318032.49086824,0.00015,2]
[392695569,1761829838081,-1166.44639154,0.00015,2]
[392695570,1761829838097,-42033.83070109,0.00015,2]
[392695571,1761829838108,-3816.88171872,0.00015,2]
[392695581,1761829839963,-4025.6124663,0.00015,2]
[392695582,1761829840144,-2197.8468704,0.00015,2]
[392695583,1761829840155,-3812.38919997,0.00015,2]
[392695584,1761829840207,-1294125.56130147,0.00015,2]
[392695585,1761829840371,-1556.58827476,0.00015,2]
[392695586,1761829840383,-1171.02139315,0.00015,2]
[392695588,1761829840468,-10237.56470157,0.00015,2]
[392695612,1761829843033,-107822.1449929,0.00015,2]
[392695613,1761829843254,-354.35139979,0.00015,2]
[392695628,1761829845951,-402.50516931,0.000149,2]
[392695657,1761829902043,202.27,0.00016,120]
[392695658,1761829958012,1100.0,0.00013808,2]
[392695659,1761830094176,182.05,0.00016,120]
[392695660,1761830239370,348.0,0.00031507,120]
[392695661,1761830280523,250.0,0.00014194,2]
[392695662,1761830290090,163.84,0.00016,120]
[392695663,1761830294526,2500.0,0.00014724,3]
[392695664,1761830391585,300.0,0.00027397,120]
[392695665,1761830427054,1000.0,0.00014129,2]
[392695666,1761830455131,176.19,0.00014147,2]
[392695667,1761830467610,192.14,0.00014166,2]
[392695668,1761830482051,150.0,0.00016,120]
[392695669,1761830538011,200.0,0.00014181,2]
[392695670,1761830610913,152.8,7.4e-05,2]
[392695671,1761830611138,152.8,7.789e-05,2]
[392695672,1761830611341,152.8,8.179e-05,2]
[392695673,1761830611552,152.8,8.568e-05,2]
[392695674,1761830611926,152.8,8.957e-05,2]
[392695675,1761830612165,152.8,9.347e-05,2]
[392695676,1761830612391,152.8,9.736e-05,2]
[392695677,1761830612607,152.8,0.00010126,2]
[392695678,1761830612817,152.8,0.00010515,2]
[392695679,1761830613113,152.8,0.00010905,2]
[392695680,1761830613308,152.8,0.00011294,2]
[392695681,1761830613518,152.8,0.00011684,2]
[392695682,1761830613724,152.8,0.00012073,2]
[392695683,1761830614406,152.8,0.00012463,2]
[392695684,1761830614446,152.8,0.00012852,2]
[392695685,1761830614482,152.8,0.00013241,2]
[392695686,1761830614634,152.8,0.00013631,2]
[392695687,1761830614866,152.8,0.0001402,2]
[392695688,1761830674116,150.0,0.00016,120]
[392695689,1761830687639,356.66,0.00014142,2]
[392695690,1761830715078,150.0,0.00013488,2]
[392695691,1761830715152,150.0,0.00013488,2]
[392695692,1761830715195,150.0,0.00013488,2]
[392695693,1761830718950,150.0,0.00013488,2]
[392695694,1761830722371,150.0,0.00013488,2]
[392695695,1761830722406,150.0,0.00013488,2]
[392695696,1761830729052,151.50504735,0.00013488,2]
[392695697,1761830731112,150.0,0.00013488,2]
[392695699,1761830733227,151.58704345,0.00013488,2]